bitfinex-derivatives/quotes_SOLF0:USTF0_20241012
["timestamp","ask_amount","ask_price","bid_price","bid_amount"]
[1728750612667,8.38,146.79,146.78,3.4068]
[1728750615169,0.12502,146.81,146.8,3.4065]
[1728750615474,8.50502,146.81,146.8,3.4065]
[1728750620070,8.50502,146.81,146.79,3.4066]
[1728750620273,8.38,146.8,146.79,3.4066]
[1728750621170,8.38,146.8,146.78,3.4068]
[1728750621364,8.38,146.79,146.78,3.4068]
[1728750627982,8.38,146.79,146.76,1.3849]
[1728750628170,8.38,146.78,146.77,3.4071]
[1728750635985,3.38534473,146.8,146.76,1.3849]
[1728750636284,3.38534473,146.8,146.78,3.4069]
[1728750638285,8.38,146.79,146.78,3.4069]
[1728750638488,3.38534473,146.8,146.78,3.4069]
[1728750638684,8.38,146.79,146.78,3.4069]
[1728750638888,3.38534473,146.8,146.79,3.4067]
[1728750639276,11.76534473,146.8,146.79,3.4067]
[1728750644491,3.38534473,146.8,146.79,3.4067]
[1728750644790,11.76534473,146.8,146.79,3.4067]
[1728750645090,8.38,146.8,146.79,3.4067]
[1728750647290,0.12502,146.81,146.76,1.3849]
[1728750647589,0.12502,146.81,146.8,3.4065]
[1728750648593,8.50502,146.81,146.8,3.4065]
[1728750649390,0.12502,146.81,146.8,3.4065]
[1728750649592,8.50502,146.81,146.8,3.4065]
[1728750652390,0.12502,146.81,146.8,3.4065]
[1728750652595,8.50502,146.81,146.8,3.4065]
[1728750655094,8.50502,146.81,146.76,1.3849]
[1728750655300,8.38,146.77,146.76,1.3849]
[1728750655700,8.38,146.77,146.76,4.7923]
[1728750656903,0.12502,146.81,146.76,1.3849]
[1728750657097,8.38,146.78,146.76,1.3849]
[1728750658399,8.38,146.78,146.77,3.4072]
[1728750660903,0.12502,146.81,146.76,1.3849]
[1728750661104,0.12502,146.81,146.79,3.4066]
[1728750661304,8.38,146.8,146.79,3.4066]
[1728750667518,8.38,146.8,146.63,0.12502]
[1728750667715,8.38,146.75,146.7,9.7821]
[1728750668419,8.38,146.75,146.71,3.36490403]
[1728750668619,8.38,146.75,146.74,3.4078]
[1728750669021,3.45618783,146.81,146.74,8.38]
[1728750669215,8.38,146.78,146.74,8.38]
[1728750669520,8.38,146.78,146.77,3.4072]
[1728750673526,8.38,146.78,146.74,1.4006]
[1728750673723,3.45618783,146.81,146.76,3.4072]
[1728750675920,8.38,146.77,146.74,3.4077]
[1728750676120,8.38,146.75,146.74,3.4077]
[1728750677227,8.38,146.75,146.73,3.408]
[1728750677422,8.38,146.74,146.73,3.408]
[1728750677623,8.38,146.74,146.7,1.4021]
[1728750677822,8.38,146.71,146.7,1.4021]
[1728750678330,8.38,146.71,146.7,4.8109]
[1728750681928,8.38,146.71,146.7,3.4088]
[1728750691232,3.41651397,146.73,146.71,3.4084]
[1728750691427,8.38,146.72,146.71,3.4084]
[1728750694234,2.6858,146.8,146.69,1.47752]
[1728750694432,8.38,146.72,146.69,1.47752]
[1728750694630,8.38,146.7,146.69,2.77872]
[1728750695231,8.38,146.7,146.69,6.18772]
[1728750695532,8.38,146.7,146.69,2.77872]
[1728750696437,8.38,146.7,146.69,6.18772]
[1728750701444,8.38,146.7,146.69,4.88652]
[1728750702341,8.38,146.7,146.69,3.53402]
[1728750703233,3.42378112,146.73,146.69,0.12502]
[1728750703439,8.38,146.7,146.69,0.12502]
[1728750704443,8.38,146.7,146.69,3.53402]
[1728750705148,3.44436458,146.72,146.71,3.4085]
[1728750705344,8.38,146.72,146.71,3.4085]
[1728750705546,11.71934931,146.72,146.71,3.4085]
[1728750709245,3.33934931,146.72,146.71,3.4085]
[1728750709446,8.38,146.72,146.71,3.4085]
[1728750709752,11.86016524,146.72,146.71,3.4085]
[1728750711146,11.86016524,146.72,146.7,3.4086]
[1728750711343,8.38,146.71,146.7,3.4086]
[1728750713748,3.33332573,146.72,146.71,3.4085]
[1728750713953,8.38,146.72,146.71,3.4085]
[1728750714156,11.83050184,146.72,146.71,3.4085]
[1728750720257,11.83050184,146.72,146.69,0.12502]
[1728750720461,8.38,146.7,146.69,3.53402]
[1728750722754,3.35378185,146.72,146.71,3.4085]
[1728750722961,8.38,146.72,146.71,3.4085]
[1728750723262,11.74492121,146.72,146.71,3.4085]
[1728750725065,11.74492121,146.72,146.69,0.12502]
[1728750725268,8.38,146.7,146.69,0.12502]
[1728750725674,8.38,146.7,146.69,3.53402]
[1728750730270,3.35605628,146.72,146.71,3.4085]
[1728750730571,4.86,146.78,146.69,0.12502]
[1728750730876,8.38,146.73,146.69,9.84782]
[1728750731072,8.38,146.73,146.7,1.4009]
[1728750732274,2.6858,146.8,146.7,1.4009]
[1728750732472,7.5458,146.8,146.71,8.38]
[1728750732669,8.38,146.75,146.71,8.38]
[1728750732868,8.38,146.75,146.74,3.4078]
[1728750743983,3.45618783,146.81,146.76,3.4072]
[1728750744184,8.38,146.77,146.76,3.4072]
[1728750749095,8.38,146.77,146.71,8.38]
[1728750749385,8.38,146.74,146.7,11.1836]
[1728750749987,8.38,146.74,146.73,3.4081]
[1728750752384,8.38,146.75,146.74,3.4078]
[1728750753686,8.38,146.75,146.73,3.408]
[1728750753880,8.38,146.74,146.73,3.408]
[1728750755493,8.38,146.74,146.72,3.4083]
[1728750755694,8.38,146.73,146.72,3.4083]
[1728750760396,8.38,146.73,146.69,0.12502]
[1728750760590,8.38,146.7,146.69,0.12502]
[1728750761186,8.38,146.7,146.69,3.53402]
[1728750763288,8.38,146.7,146.69,0.12502]
[1728750764490,8.38,146.7,146.69,3.53402]
[1728750772799,3.44853841,146.73,146.69,0.12502]
[1728750773001,8.38,146.71,146.69,0.12502]
[1728750773398,8.38,146.71,146.7,3.4088]
[1728750780123,8.38,146.71,146.69,0.12502]
[1728750780316,8.38,146.7,146.69,3.53402]
[1728750785823,8.38,146.7,146.69,0.12502]
[1728750787431,8.38,146.7,146.69,3.53402]
[1728750788131,8.38,146.7,146.69,0.12502]
[1728750793337,3.34582752,146.76,146.69,0.12502]
[1728750793533,8.38,146.7,146.69,3.53402]
[1728750793737,3.4136783,146.76,146.69,0.12502]
[1728750793935,8.38,146.7,146.69,0.12502]
[1728750794333,2.6566,146.79,146.69,0.12502]
[1728750794826,1.25288642,146.78,146.69,9.81272]
[1728750795034,8.38,146.74,146.7,8.38]
[1728750795231,3.41197351,146.78,146.73,8.38]
[1728750795436,8.38,146.78,146.77,3.4072]
[1728750795737,8.38,146.79,146.75,8.38]
[1728750796738,8.38,146.78,146.77,3.4072]
[1728750798341,8.38,146.79,146.75,8.38]
[1728750799540,8.38,146.79,146.78,3.4069]
[1728750802743,0.12502,146.81,146.79,3.4066]
[1728750802948,8.38,146.8,146.79,3.4066]
[1728750803541,0.12502,146.81,146.8,3.4065]
[1728750805443,0.12502,146.81,146.8,11.7865]
[1728750814959,0.12502,146.81,146.8,3.4065]
[1728750815157,0.12502,146.81,146.8,11.7865]
[1728750817757,0.12502,146.81,146.8,3.4065]
[1728750817953,0.12502,146.81,146.8,11.7865]
[1728750820355,8.50502,146.81,146.79,3.4067]
[1728750820656,8.50502,146.81,146.77,8.38]
[1728750820859,8.38,146.8,146.75,9.779]
[1728750821053,8.38,146.79,146.75,9.779]
[1728750822059,8.38,146.79,146.77,3.407]
[1728750822561,8.38,146.78,146.77,3.407]
[1728750835380,8.38,146.78,146.76,3.4073]
[1728750835674,0.12502,146.81,146.76,3.4073]
[1728750835675,8.38,146.77,146.76,3.4073]
[1728750844885,0.12502,146.81,146.74,1.3006]
[1728750845077,0.12502,146.81,146.77,3.4071]
[1728750845277,8.38,146.78,146.77,3.4071]
[1728750849091,11.73888059,146.78,146.77,3.4071]
[1728750850186,11.73888059,146.78,146.71,13.11559744]
[1728750850187,11.73888059,146.78,146.75,3.4075]
[1728750850388,8.38,146.76,146.75,3.4075]
[1728750851081,3.35888059,146.78,146.77,3.4072]
[1728750851284,8.38,146.78,146.77,3.4072]
[1728750851483,11.74501553,146.78,146.77,3.4072]
[1728750852791,0.12502,146.81,146.75,8.38]
[1728750852994,8.38,146.8,146.75,8.38]
[1728750853191,8.38,146.8,146.76,8.38]
[1728750854088,8.38,146.8,146.79,3.4067]
[1728750862708,8.50502,146.81,146.8,3.4065]
[1728750865207,0.12502,146.81,146.8,3.4065]
[1728750866809,0.12502,146.81,146.8,11.7865]
[1728750873600,0.12502,146.81,146.8,3.4065]
[1728750873805,0.12502,146.81,146.8,11.7865]
[1728750893020,0.12502,146.81,146.8,14.487]
[1728750900128,0.12502,146.81,146.8,3.4065]
[1728750900424,0.12502,146.81,146.8,11.7865]
[1728750901027,0.12502,146.81,146.8,3.4065]
[1728750901321,0.12502,146.81,146.8,11.7865]
[1728750909632,0.12502,146.81,146.8,3.4065]
[1728750920939,0.12502,146.81,146.8,11.7865]
[1728750935143,0.12502,146.81,146.8,3.4065]
[1728750939445,8.50502,146.81,146.8,3.4065]
[1728750941952,8.50502,146.81,146.74,1.3564]
[1728750942151,8.38,146.79,146.74,9.7364]
[1728750942657,8.38,146.79,146.77,3.407]
[1728750943362,8.38,146.78,146.69,8.50502]
[1728750943658,8.38,146.75,146.73,3.408]
[1728750946460,8.38,146.74,146.73,3.408]
[1728750949869,3.3848857,146.76,146.74,3.4077]
[1728750950070,8.38,146.75,146.74,3.4077]
[1728750965369,8.38,146.75,146.72,3.4082]
[1728750965569,8.38,146.73,146.72,3.4082]
[1728750972185,8.38,146.73,146.7,3.4088]
[1728750972388,8.38,146.7,146.69,1.55412]
[1728750972883,8.38,146.7,146.69,0.12502]
[1728750973687,8.38,146.7,146.69,3.53402]
[1728750976187,8.38,146.7,146.69,0.12502]
[1728750989003,8.38,146.7,146.69,3.53402]
[1728750995516,1.38,146.77,146.72,3.4082]
[1728750995713,8.38,146.73,146.72,3.4082]
[1728750997627,91.53542676,146.76,146.74,3.4078]
[1728750997823,8.38,146.75,146.74,3.4078]
[1728751002933,8.38,146.75,146.73,3.408]
[1728751003230,8.38,146.74,146.73,3.408]
[1728751003930,8.38,146.74,146.71,3.4085]
[1728751004227,8.38,146.72,146.71,3.4085]
[1728751016631,8.38,146.72,146.7,3.4087]
[1728751016837,8.38,146.71,146.7,3.4087]
[1728751021148,8.38,146.71,146.69,0.12502]
[1728751021442,8.38,146.7,146.69,0.12502]
[1728751037864,0.1211,146.75,146.69,0.12502]
[1728751038055,8.38,146.7,146.69,0.12502]
[1728751041961,0.1211,146.75,146.69,0.12502]
[1728751042157,8.38,146.7,146.69,0.12502]
[1728751043056,0.1211,146.75,146.69,0.12502]
[1728751043359,1.25321546,146.74,146.69,0.12502]
[1728751043666,8.38,146.71,146.69,0.12502]
[1728751043850,8.38,146.71,146.69,3.53392]
[1728751044156,91.53542676,146.76,146.69,0.12502]
[1728751044157,8.38,146.7,146.69,0.12502]
[1728751055967,8.38,146.7,146.69,3.53402]
[1728751062366,8.38,146.7,146.69,0.12502]
[1728751070375,8.38,146.7,146.66,3.4096]
[1728751070575,8.38,146.67,146.66,3.4096]
[1728751071377,11.71821402,146.67,146.66,3.4096]
[1728751074578,11.71821402,146.67,146.63,4.16822]
[1728751074787,8.38,146.66,146.65,3.4099]
[1728751087792,8.38,146.66,146.64,3.41]
[1728751087993,8.38,146.65,146.64,3.41]
[1728751101705,8.38,146.65,146.63,0.12502]
[1728751101902,8.38,146.64,146.63,0.12502]
[1728751104907,8.38,146.65,146.64,3.4102]
[1728751105807,11.7110514,146.65,146.64,3.4102]
[1728751107305,11.7110514,146.65,146.63,3.53532]
[1728751107609,8.38,146.64,146.63,3.53532]
[1728751107908,8.38,146.64,146.63,0.12502]
[1728751108505,11.72287065,146.64,146.63,0.12502]
[1728751110810,3.34287065,146.64,146.63,0.12502]
[1728751111111,8.38,146.65,146.63,0.12502]
[1728751111305,11.76733644,146.65,146.63,0.12502]
[1728751112504,11.76733644,146.65,146.63,3.53542]
[1728751113714,8.38,146.64,146.63,3.53542]
[1728751114414,11.7762056,146.64,146.63,3.53542]
[1728751119006,11.7762056,146.64,146.63,0.12502]
[1728751119405,11.7762056,146.64,146.59,3.4112]
[1728751119605,8.38,146.6,146.59,3.4112]
[1728751120710,11.75062905,146.6,146.59,3.4112]
[1728751124026,11.75062905,146.6,146.58,3.4115]
[1728751125211,11.75062905,146.6,146.59,3.4113]
[1728751126815,3.37062905,146.6,146.59,3.4113]
[1728751127118,8.38,146.61,146.6,3.411]
[1728751130618,8.38,146.61,146.57,0.12502]
[1728751130919,8.38,146.59,146.58,3.4114]
[1728751136528,94.33138336,146.65,146.57,0.12502]
[1728751136823,8.38,146.6,146.59,3.4112]
[1728751137323,94.33138336,146.65,146.6,3.4111]
[1728751137527,8.38,146.61,146.6,3.4111]
[1728751151238,3.40668659,146.65,146.63,3.4104]
[1728751151536,8.38,146.64,146.63,3.4104]
[1728751155334,3.48493538,146.65,146.61,8.38]
[1728751155644,8.38,146.66,146.62,8.38]
[1728751155844,11.82805969,146.67,146.63,9.8136]
[1728751156036,8.38,146.67,146.63,9.8136]
[1728751156238,8.38,146.67,146.66,3.4097]
[1728751156844,8.38,146.68,146.67,3.4095]
[1728751157145,8.50502,146.69,146.65,8.38]
[1728751157339,8.38,146.67,146.66,3.4095]
[1728751160946,0.12502,146.69,146.66,3.4095]
[1728751161150,8.38,146.67,146.66,3.4095]
[1728751162247,8.38,146.68,146.66,3.4095]
[1728751164044,8.38,146.68,146.67,3.4095]
[1728751164246,0.12502,146.69,146.65,8.38]
[1728751164645,0.12502,146.69,146.68,3.4092]
[1728751166547,8.50502,146.69,146.68,3.4092]
[1728751168851,8.50502,146.69,146.67,3.4094]
[1728751169046,8.38,146.68,146.67,3.4094]
[1728751170549,8.38,146.68,146.64,1.3028]
[1728751170755,11.79755394,146.67,146.66,3.4097]
[1728751170951,8.38,146.67,146.66,3.4097]
[1728751171553,11.80416034,146.67,146.66,3.4097]
[1728751177563,8.38,146.67,146.66,3.4097]
[1728751198673,0.12502,146.69,146.63,9.8136]
[1728751198882,8.50502,146.69,146.68,3.4092]
[1728751200370,0.12502,146.69,146.68,3.4092]
[1728751201879,8.50502,146.69,146.68,3.4092]
[1728751211690,0.12502,146.69,146.68,3.4092]
[1728751221201,8.50502,146.69,146.64,2.7214]
[1728751221398,8.38,146.68,146.64,2.7214]
[1728751222006,8.38,146.68,146.65,3.4099]
[1728751222204,0.12502,146.69,146.67,8.38]
[1728751222606,0.12502,146.69,146.64,2.7214]
[1728751223005,0.12502,146.69,146.67,8.38]
[1728751223507,0.12502,146.69,146.68,3.4092]
[1728751226209,0.12502,146.69,146.68,11.7892]
[1728751232214,0.12502,146.69,146.68,3.4092]
[1728751232911,8.50502,146.69,146.67,3.4093]
[1728751233116,8.38,146.68,146.67,3.4093]
[1728751234821,8.38,146.68,146.63,9.8136]
[1728751235018,8.38,146.68,146.66,3.4096]
[1728751237114,8.38,146.67,146.66,3.4096]
[1728751239718,0.12502,146.69,146.63,9.8136]
[1728751240024,0.12502,146.69,146.67,8.38]
[1728751240918,0.12502,146.69,146.68,3.4092]
[1728751245517,0.12502,146.69,146.68,11.7892]
[1728751251624,0.12502,146.69,146.68,3.4092]
[1728751274757,8.50502,146.69,146.64,2.6426]
[1728751274957,8.50502,146.69,146.67,3.4093]
[1728751275557,8.38,146.68,146.67,3.4093]
[1728751281358,0.12502,146.69,146.67,3.4093]
[1728751281563,8.50502,146.69,146.67,3.4093]
[1728751282663,8.50502,146.69,146.68,3.4092]
[1728751284655,8.50502,146.69,146.63,1.4336]
[1728751284853,8.38,146.66,146.63,1.4336]
[1728751285054,11.80846788,146.65,146.63,1.4336]
[1728751285255,8.38,146.65,146.63,3.4102]
[1728751285457,8.38,146.64,146.63,3.4102]
[1728751299562,8.38,146.64,146.6,8.38]
[1728751299767,8.38,146.64,146.62,3.4105]
[1728751301463,3.47041571,146.67,146.65,3.4099]
[1728751301673,8.38,146.66,146.65,3.4099]
[1728751303267,8.38,146.66,146.64,3.4101]
[1728751305171,8.38,146.66,146.62,8.38]
[1728751305369,8.38,146.66,146.65,3.4099]
[1728751306869,3.53412,146.69,146.66,3.4097]
[1728751307069,8.38,146.68,146.66,3.4097]
[1728751307464,8.38,146.67,146.66,3.4097]
[1728751308173,8.38,146.67,146.65,3.4098]
[1728751313170,8.38,146.68,146.63,9.8009]
[1728751313873,0.12502,146.69,146.65,8.38]
[1728751314771,0.12502,146.69,146.67,3.4092]
[1728751314964,0.12502,146.69,146.66,8.38]
[1728751315161,0.12502,146.69,146.68,3.4092]
[1728751328083,0.12502,146.69,146.66,8.38]
[1728751328382,0.12502,146.69,146.67,3.4094]
[1728751330786,0.12502,146.69,146.67,11.7894]
[1728751332787,0.12502,146.69,146.68,3.4092]
[1728751336385,0.12502,146.69,146.68,11.7892]
[1728751338986,0.12502,146.69,146.68,3.4092]
[1728751339891,0.12502,146.69,146.68,11.7892]
[1728751347995,0.12502,146.75,146.73,3.4081]
[1728751350591,8.50502,146.75,146.73,3.4081]
[1728751351488,8.50502,146.75,146.71,8.38]
[1728751351694,8.50502,146.75,146.72,3.4082]
[1728751359904,11.788,146.74,146.7,3.4086]
[1728751360109,8.38,146.73,146.7,3.4086]
[1728751361102,11.7881,146.73,146.7,3.4086]
[1728751361402,3.4081,146.73,146.7,3.4086]
[1728751361803,8.38,146.74,146.69,8.38]
[1728751362003,11.7879,146.74,146.71,3.4085]
[1728751363905,11.91272,146.75,146.72,3.4083]
[1728751369610,3.53272,146.75,146.72,3.4083]
[1728751375017,8.38,146.74,146.72,3.4083]
[1728751376416,8.38,146.73,146.72,3.4083]
[1728751377512,3.53272,146.75,146.72,3.4083]
[1728751377812,8.38,146.74,146.72,3.4083]
[1728751380212,8.50502,146.75,146.73,3.4081]
[1728751383618,0.12502,146.75,146.71,8.38]
[1728751384318,0.12502,146.75,146.74,3.4078]
[1728751387827,0.12502,146.75,146.73,3.408]
[1728751388825,0.12502,146.75,146.71,9.7501]
[1728751389029,3.53262,146.75,146.72,3.4082]
[1728751389226,0.12502,146.75,146.71,9.7501]
[1728751390031,0.12502,146.75,146.72,3.4083]
[1728751390828,0.12502,146.75,146.73,3.408]
[1728751393431,0.12502,146.75,146.72,8.38]
[1728751393732,0.12502,146.75,146.74,3.4078]
[1728751394922,0.12502,146.75,146.74,11.7878]
[1728751395426,0.12502,146.75,146.74,3.4078]
[1728751400924,0.12502,146.75,146.74,11.7878]
[1728751401426,0.12502,146.75,146.74,3.4078]
[1728751401632,0.12502,146.75,146.74,11.7878]
[1728751420639,0.12502,146.75,146.74,3.4078]
[1728751420848,8.50502,146.75,146.71,1.3701]
[1728751421040,8.38,146.73,146.69,8.38]
[1728751421347,8.38,146.73,146.7,8.38]
[1728751421541,8.38,146.73,146.71,3.4084]
[1728751430054,8.38,146.73,146.69,8.38]
[1728751430251,8.38,146.73,146.7,8.38]
[1728751430646,8.50502,146.75,146.73,3.408]
[1728751431552,0.12502,146.75,146.74,3.4078]
[1728751437861,0.12502,146.75,146.74,11.7878]
[1728751444571,0.12502,146.75,146.74,3.4078]
[1728751448667,0.12502,146.75,146.74,11.7878]
[1728751458485,0.12502,146.75,146.74,3.4078]
[1728751463887,0.12502,146.75,146.74,11.7878]
[1728751467491,0.12502,146.75,146.74,3.4078]
[1728751471898,0.12502,146.75,146.74,11.7878]
[1728751472793,0.12502,146.75,146.74,3.4078]
[1728751504224,0.12502,146.75,146.74,11.7878]
[1728751505119,1.3206,146.8,146.74,8.38]
[1728751505321,3.53132,146.81,146.78,3.4069]
[1728751505823,11.91132,146.81,146.78,3.4069]
[1728751506025,8.38,146.8,146.76,8.38]
[1728751506224,8.38,146.8,146.77,3.4071]
[1728751506733,8.38,146.79,146.75,8.38]
[1728751506934,8.38,146.79,146.76,3.4073]
[1728751508227,8.38,146.79,146.77,3.4071]
[1728751511132,11.7866,146.8,146.77,3.4071]
[1728751517034,0.12502,146.81,146.77,8.38]
[1728751517238,3.53132,146.81,146.78,3.4068]
[1728751517740,0.12502,146.81,146.8,3.4065]
[1728751518944,0.12502,146.81,146.79,3.4066]
[1728751519143,0.12502,146.81,146.8,4.92250148]
[1728751519344,0.12502,146.81,146.79,3.4066]
[1728751520743,0.12502,146.81,146.8,8.32702002]
[1728751522246,0.12502,146.81,146.8,3.4065]
[1728751540372,0.12502,146.81,146.8,11.7865]
[1728751548367,0.12502,146.81,146.8,3.4065]
[1728751548569,0.12502,146.81,146.8,11.7865]
[1728751549569,0.12502,146.81,146.8,3.4065]
[1728751551178,0.12502,146.81,146.8,11.7865]
[1728751552273,1e-08,146.81,146.8,11.7865]
[1728751552465,1e-08,146.81,146.8,16.69643888]
[1728751554078,11.90982,146.87,146.85,3.4051]
[1728751554079,0.12502,146.87,146.85,3.4051]
[1728751554279,0.12502,146.87,146.85,8.38]
[1728751554776,0.12502,146.87,146.86,3.4051]
[1728751562978,0.06502,146.87,146.86,3.4051]
[1728751564588,0.06502,146.87,146.85,8.38]
[1728751564788,0.06502,146.87,146.85,11.7852]
[1728751569495,3.4051,146.86,146.82,8.38]
[1728751569793,8.44502,146.87,146.82,8.38]
[1728751570595,11.85002,146.87,146.84,3.4054]
[1728751570789,11.85002,146.87,146.82,8.38]
[1728751570790,8.44502,146.87,146.82,8.38]
[1728751572098,8.44502,146.87,146.81,0.06]
[1728751572290,8.44502,146.87,146.83,8.38]
[1728751572496,3.4051,146.86,146.83,11.7857]
[1728751574903,11.84992,146.87,146.84,3.4055]
[1728751575205,3.46992,146.87,146.84,11.7855]
[1728751575902,0.06502,146.87,146.85,11.7853]
[1728751577405,0.06502,146.87,146.86,11.7851]
[1728751578302,0.06502,146.87,146.86,11.7251]
[1728751583600,0.06502,146.87,146.86,3.4051]
[1728751583913,11.84992,146.87,146.83,8.38]
[1728751584609,3.4051,146.86,146.84,3.4054]
[1728751585313,11.7851,146.86,146.83,3.4056]
[1728751585516,8.38,146.85,146.81,0.06]
[1728751585708,8.38,146.85,146.81,8.44]
[1728751586008,3.4057,146.84,146.81,11.8461]
[1728751586516,8.38,146.85,146.81,8.44]
[1728751586707,11.7855,146.85,146.82,3.406]
[1728751590917,3.4056,146.84,146.81,3.466]
[1728751592916,3.4056,146.84,146.81,0.06]
[1728751593120,3.4056,146.84,146.82,3.406]
[1728751593311,3.4056,146.84,146.81,0.06]
[1728751593705,3.4056,146.84,146.81,3.4661]
[1728751594517,3.4058,146.83,146.81,0.06]
[1728751596221,3.4056,146.84,146.81,0.06]
[1728751597215,3.4054,146.85,146.81,8.44]
[1728751597415,11.0544,146.86,146.81,8.44]
[1728751597816,11.0544,146.86,146.81,0.06]
[1728751598313,3.4057,146.84,146.81,3.4661]
[1728751600719,3.4057,146.84,146.82,4.91302279]
[1728751600919,3.4057,146.84,146.81,3.4661]
[1728751604424,3.4059,146.83,146.81,0.06]
[1728751605325,11.786,146.82,146.81,0.06]
[1728751622339,8.38,146.82,146.81,0.06]
[1728751623536,11.7856,146.84,146.81,3.4662]
[1728751624946,8.38,146.84,146.81,0.06]
[1728751625249,8.38,146.84,146.82,3.406]
[1728751625641,0.06502,146.87,146.81,8.44]
[1728751625851,0.06502,146.87,146.83,8.38]
[1728751626245,8.44502,146.87,146.82,8.38]
[1728751626441,11.84992,146.87,146.84,3.4054]
[1728751627856,3.46992,146.87,146.82,8.38]
[1728751628050,11.84992,146.87,146.85,3.4053]
[1728751628456,8.44502,146.87,146.85,3.4053]
[1728751628960,8.44502,146.87,146.85,3.4051]
[1728751630255,0.06502,146.87,146.85,3.4051]
[1728751630451,8.44502,146.87,146.85,3.4051]
[1728751638667,8.38,146.86,146.81,0.06]
[1728751638963,8.38,146.84,146.81,0.06]
[1728751639164,8.38,146.84,146.82,3.406]
[1728751639364,8.38,146.85,146.81,8.44]
[1728751639859,8.38,146.85,146.83,3.4056]
[1728751642266,8.38,146.85,146.81,0.06]
[1728751642565,8.38,146.85,146.82,3.4059]
[1728751642566,11.7855,146.85,146.82,3.4059]
[1728751646868,8.38,146.84,146.82,3.4059]
[1728751647860,8.38,146.84,146.81,0.06]
[1728751648065,11.7855,146.84,146.81,3.4661]
[1728751649366,0.06502,146.87,146.83,3.4056]
[1728751649567,8.44502,146.87,146.83,3.4056]
[1728751650166,8.38,146.86,146.83,3.4056]
[1728751650468,11.7852,146.86,146.83,3.4056]
[1728751651277,3.4053,146.85,146.83,3.4056]
[1728751656274,3.4053,146.85,146.82,3.4058]
[1728751656776,3.4053,146.85,146.83,3.4058]
[1728751660883,3.4052,146.86,146.84,3.4055]
[1728751661182,0.06502,146.87,146.84,8.38]
[1728751661481,0.06502,146.87,146.86,3.4051]
[1728751663181,0.06502,146.87,146.85,8.38]
[1728751663377,0.06502,146.87,146.85,3.4052]
[1728751666285,8.44502,146.87,146.82,8.38]
[1728751666497,11.85002,146.87,146.84,3.4054]
[1728751669892,11.85002,146.87,146.84,3.4055]
[1728751670282,11.85002,146.87,146.83,8.38]
[1728751670490,11.85002,146.87,146.85,3.4053]
[1728751671083,8.44502,146.87,146.85,3.4053]
[1728751680590,11.84992,146.87,146.85,3.4053]
[1728751680988,8.44502,146.87,146.85,3.4053]
[1728751682397,8.44502,146.87,146.81,0.06]
[1728751682594,8.38,146.86,146.82,4.92119902]
[1728751682794,8.38,146.85,146.83,4.92119902]
[1728751683003,11.7853,146.85,146.82,3.4059]
[1728751683611,11.7855,146.84,146.81,3.4661]
[1728751683810,11.7855,146.84,146.82,4.92272258]
[1728751684011,11.7855,146.84,146.81,3.4661]